fUSD/lending_fUSD_20250107
["ID","MTS","AMOUNT","RATE_DAILY","PERIOD"]
[348053922,1736285431544,-487.42,8.413e-05,2]
[348053923,1736285431554,-1000.0,8.414e-05,2]
[348053924,1736285431563,-259.3627,8.691e-05,2]
[348053925,1736285431573,-1331.87570117,8.756e-05,2]
[348053926,1736285431584,-918.204,8.756e-05,2]
[348053927,1736285431618,-1900.0,8.756e-05,2]
[348053928,1736285431630,-1096.69283113,8.756e-05,2]
[348053929,1736285431640,-337.66615829,8.756e-05,2]
[348053930,1736285431649,-2843.34867042,8.762e-05,2]
[348053931,1736285431813,-1848.29387348,8.762e-05,2]
[348053932,1736285431822,-9272.39403878,8.768e-05,2]
[348053933,1736285431831,-900.0,8.768e-05,2]
[348053934,1736285431841,-208.69374742,8.768e-05,2]
[348053936,1736285431851,-8467.72,8.791e-05,2]
[348053938,1736285431860,-250.0,8.797e-05,2]
[348053940,1736285431869,-250.0,8.868e-05,2]
[348053941,1736285431879,-507.12,8.902e-05,2]
[348053942,1736285431890,-913.99,8.91e-05,2]
[348053943,1736285431901,-1000.0,8.96e-05,2]
[348053944,1736285431910,-265.81,8.961e-05,2]
[348053945,1736285431920,-150.99,8.961e-05,2]
[348053946,1736285431932,-6759.66,8.961e-05,2]
[348053947,1736285431942,-2456.12,8.961e-05,2]
[348053948,1736285431952,-5465.17,8.961e-05,2]
[348053949,1736285431961,-5115.01,8.961e-05,2]
[348053950,1736285431971,-2907.57,8.961e-05,2]
[348053951,1736285431981,-300.0,8.988e-05,2]
[348053952,1736285431991,-265.16044038,9e-05,2]
[348053953,1736285432000,-150.0,9e-05,2]
[348053954,1736285432010,-166.55,9.018e-05,2]
[348053955,1736285432019,-250.0,9.095e-05,2]
[348053956,1736285432030,-167.19,9.095e-05,2]
[348053957,1736285432039,-150.0,9.254e-05,2]
[348053958,1736285432048,-20090.0,9.313e-05,2]
[348053959,1736285432058,-150.0,9.348e-05,2]
[348053960,1736285432068,-700.0,9.4e-05,3]
[348053961,1736285432078,-487.42,9.465e-05,2]
[348053962,1736285432087,-1000.0,9.466e-05,2]
[348053963,1736285432096,-150.0,9.494e-05,2]
[348053964,1736285432105,-1500.0,9.5e-05,3]
[348053965,1736285432115,-205.678,9.5e-05,2]
[348053966,1736285432125,-300.0,9.513e-05,2]
[348053967,1736285432136,-300.0,9.555e-05,2]
[348053968,1736285432145,-23695.3926,9.593e-05,2]
[348053969,1736285432155,-2300.0,9.6e-05,3]
[348053970,1736285432164,-150.0,9.653e-05,2]
[348053971,1736285432175,-300.0,9.658e-05,2]
[348053972,1736285432184,-1283.817,9.692e-05,2]
[348053973,1736285432195,-58067.296,9.693e-05,2]
[348053974,1736285432204,-1000.0,9.693e-05,2]
[348053975,1736285432213,-916.1245,9.693e-05,2]
[348053976,1736285432223,-3100.0,9.7e-05,3]
[348053977,1736285432233,-150.0,9.738e-05,2]
[348053978,1736285432243,-500.0,9.79e-05,2]
[348053979,1736285432252,-2739.8,9.79e-05,2]
[348053980,1736285432262,-4421.61,9.79e-05,2]
[348053981,1736285432271,-2588.86,9.79e-05,2]
[348053982,1736285432280,-500.0,9.79e-05,2]
[348053983,1736285432290,-1427.65,9.79e-05,2]
[348053984,1736285432299,-3773.34,9.79e-05,2]
[348053985,1736285432309,-500.0,9.79e-05,2]
[348053986,1736285432318,-500.0,9.79e-05,2]
[348053987,1736285432329,-500.0,9.79e-05,2]
[348053988,1736285432339,-500.0,9.79e-05,2]
[348053989,1736285432348,-500.0,9.79e-05,2]
[348053990,1736285432358,-500.0,9.79e-05,2]
[348053991,1736285432367,-500.0,9.79e-05,2]
[348053992,1736285432377,-775.84,9.79e-05,2]
[348053993,1736285432387,-1442.18,9.79e-05,2]
[348053994,1736285432395,-500.0,9.79e-05,2]
[348053995,1736285432406,-500.0,9.79e-05,2]
[348053996,1736285432416,-2504.6,9.79e-05,2]
[348053997,1736285432425,-500.0,9.79e-05,2]
[348053998,1736285432435,-1271.56,9.79e-05,2]
[348053999,1736285432444,-500.0,9.79e-05,2]
[348054000,1736285432453,-500.0,9.791e-05,2]
[348054001,1736285432463,-500.0,9.791e-05,2]
[348054002,1736285432474,-500.0,9.791e-05,2]
[348054003,1736285432485,-500.0,9.791e-05,2]
[348054004,1736285432495,-842.32,9.791e-05,2]
[348054005,1736285432505,-500.0,9.791e-05,2]
[348054006,1736285432515,-500.0,9.791e-05,2]
[348054007,1736285432524,-500.0,9.791e-05,2]
[348054008,1736285432534,-500.0,9.791e-05,2]
[348054009,1736285432543,-500.0,9.791e-05,2]
[348054010,1736285432553,-797.09,9.791e-05,2]
[348054011,1736285432563,-1017.77,9.791e-05,2]
[348054012,1736285432572,-500.0,9.791e-05,2]
[348054013,1736285432581,-500.0,9.791e-05,2]
[348054014,1736285432591,-1437.75,9.791e-05,2]
[348054015,1736285432602,-500.0,9.791e-05,2]
[348054016,1736285432611,-947.8,9.791e-05,2]
[348054017,1736285432622,-500.0,9.791e-05,2]
[348054018,1736285432631,-1274.88,9.791e-05,2]
[348054019,1736285432641,-500.0,9.791e-05,2]
[348054020,1736285432651,-500.0,9.791e-05,2]
[348054021,1736285432661,-664.2,9.791e-05,2]
[348054022,1736285432671,-500.0,9.791e-05,2]
[348054023,1736285432681,-500.0,9.791e-05,2]
[348054024,1736285432690,-663.58,9.791e-05,2]
[348054025,1736285432700,-500.0,9.791e-05,2]
[348054026,1736285432709,-571.11,9.791e-05,2]
[348054027,1736285432719,-1158.95,9.791e-05,2]
[348054028,1736285432728,-500.0,9.791e-05,2]
[348054029,1736285432738,-1022.43,9.791e-05,2]
[348054030,1736285432747,-554.05,9.791e-05,2]
[348054031,1736285432757,-500.0,9.791e-05,2]
[348054032,1736285432767,-500.0,9.791e-05,2]
[348054033,1736285432776,-500.0,9.791e-05,2]
[348054034,1736285432785,-1191.91,9.791e-05,2]
[348054035,1736285432794,-500.0,9.791e-05,2]
[348054036,1736285432804,-1206.94,9.791e-05,2]
[348054037,1736285432814,-683.79,9.791e-05,2]
[348054038,1736285432823,-500.0,9.791e-05,2]
[348054039,1736285432832,-500.0,9.791e-05,2]
[348054040,1736285432842,-174.22188404,9.791e-05,2]
[348054041,1736285432852,-500.0,9.791e-05,2]
[348054042,1736285432862,-500.0,9.791e-05,2]
[348054043,1736285432872,-500.0,9.791e-05,2]
[348054044,1736285432883,-1313.21,9.791e-05,2]
[348054045,1736285432895,-500.0,9.791e-05,2]
[348054046,1736285432904,-500.0,9.791e-05,2]
[348054047,1736285432913,-500.0,9.791e-05,2]
[348054048,1736285432923,-500.0,9.791e-05,2]
[348054049,1736285432933,-500.0,9.791e-05,2]
[348054050,1736285432943,-659.25,9.791e-05,2]
[348054051,1736285432953,-1227.26,9.791e-05,2]
[348054052,1736285432963,-500.0,9.791e-05,2]
[348054053,1736285432974,-500.0,9.791e-05,2]
[348054054,1736285432986,-500.0,9.791e-05,2]
[348054055,1736285432996,-500.0,9.791e-05,2]
[348054056,1736285433006,-500.0,9.791e-05,2]
[348054057,1736285433017,-777.37,9.791e-05,2]
[348054058,1736285433027,-500.0,9.791e-05,2]
[348054059,1736285433037,-502.47,9.791e-05,2]
[348054060,1736285433047,-500.0,9.791e-05,2]
[348054061,1736285433056,-1116.32,9.791e-05,2]
[348054062,1736285433066,-500.0,9.791e-05,2]
[348054063,1736285433075,-595.05,9.791e-05,2]
[348054064,1736285433084,-1281.49,9.791e-05,2]
[348054065,1736285433094,-655.26,9.791e-05,2]
[348054066,1736285433103,-641.0,9.791e-05,2]
[348054067,1736285433113,-516.47,9.791e-05,2]
[348054068,1736285433123,-864.55,9.791e-05,2]
[348054069,1736285433135,-500.0,9.791e-05,2]
[348054070,1736285433145,-500.0,9.791e-05,2]
[348054071,1736285433155,-500.0,9.791e-05,2]
[348054072,1736285433165,-548.31,9.791e-05,2]
[348054073,1736285433175,-782.54,9.791e-05,2]
[348054074,1736285433186,-500.0,9.791e-05,2]
[348054075,1736285433196,-1324.88,9.791e-05,2]
[348054076,1736285433206,-500.0,9.791e-05,2]
[348054077,1736285433216,-500.0,9.791e-05,2]
[348054078,1736285433226,-1341.85,9.791e-05,2]
[348054079,1736285433236,-749.65,9.791e-05,2]
[348054080,1736285433245,-500.0,9.791e-05,2]
[348054081,1736285433255,-555.11,9.791e-05,2]
[348054082,1736285433265,-1156.91,9.791e-05,2]
[348054083,1736285433275,-500.0,9.791e-05,2]
[348054084,1736285433284,-500.0,9.791e-05,2]
[348054085,1736285433294,-1330.73,9.791e-05,2]
[348054086,1736285433304,-887.48,9.791e-05,2]
[348054087,1736285433314,-500.0,9.791e-05,2]
[348054088,1736285433324,-1038.23,9.791e-05,2]
[348054089,1736285433333,-740.23,9.791e-05,2]
[348054090,1736285433342,-762.28,9.791e-05,2]
[348054091,1736285433351,-500.0,9.791e-05,2]
[348054092,1736285433360,-500.0,9.791e-05,2]
[348054093,1736285433371,-1574.26,9.791e-05,2]
[348054094,1736285433380,-1444.71,9.791e-05,2]
[348054095,1736285433389,-3476.46,9.791e-05,2]
[348054096,1736285433399,-1079.54,9.791e-05,2]
[348054097,1736285433409,-8686.16,9.791e-05,2]
[348054098,1736285433418,-500.0,9.791e-05,2]
[348054099,1736285433427,-1333.75,9.791e-05,2]
[348054100,1736285433437,-546.63,9.791e-05,2]
[348054101,1736285433447,-500.0,9.791e-05,2]
[348054102,1736285433457,-881.0,9.791e-05,2]
[348054103,1736285433467,-827.12,9.791e-05,2]
[348054104,1736285433477,-500.0,9.791e-05,2]
[348054105,1736285433489,-644.65,9.791e-05,2]
[348054106,1736285433499,-1709.44,9.791e-05,2]
[348054107,1736285433509,-854.38,9.791e-05,2]
[348054108,1736285433519,-984.47,9.791e-05,2]
[348054109,1736285433528,-7538.84,9.791e-05,2]
[348054110,1736285433537,-1320.75,9.791e-05,2]
[348054111,1736285433547,-1161.12,9.791e-05,2]
[348054112,1736285433558,-500.0,9.791e-05,2]
[348054113,1736285433568,-3308.93,9.791e-05,2]
[348054114,1736285433578,-900.04,9.791e-05,2]
[348054115,1736285433588,-500.0,9.791e-05,2]
[348054116,1736285433598,-500.0,9.791e-05,2]
[348054117,1736285433803,-500.0,9.791e-05,2]
[348054118,1736285433813,-500.0,9.791e-05,2]
[348054119,1736285433823,-500.0,9.791e-05,2]
[348054120,1736285433832,-4914.73,9.791e-05,2]
[348054121,1736285433842,-1238.03,9.791e-05,2]
[348054122,1736285433852,-5662.61,9.791e-05,2]
[348054123,1736285433861,-784.17,9.791e-05,2]
[348054124,1736285433871,-1011.42,9.791e-05,2]
[348054125,1736285433881,-500.0,9.791e-05,2]
[348054126,1736285433893,-1562.34,9.791e-05,2]
[348054127,1736285433903,-2034.05,9.791e-05,2]
[348054128,1736285433912,-4487.75,9.791e-05,2]
[348054129,1736285433921,-1624.4,9.791e-05,2]
[348054130,1736285433930,-1444.06,9.791e-05,2]
[348054131,1736285433942,-1364.67,9.791e-05,2]
[348054132,1736285433953,-205.21405686,9.791e-05,2]
[348054133,1736285433963,-738.04,9.791e-05,2]
[348054134,1736285433974,-1484.14,9.791e-05,2]
[348054135,1736285433986,-3080.15,9.791e-05,2]
[348054136,1736285433995,-453.08928948,9.791e-05,2]
[348054137,1736285434006,-500.0,9.791e-05,2]
[348054138,1736285434015,-1118.2,9.791e-05,2]
[348054139,1736285434025,-500.0,9.791e-05,2]
[348054140,1736285434035,-1559.82,9.791e-05,2]
[348054141,1736285434044,-500.0,9.791e-05,2]
[348054142,1736285434054,-500.0,9.791e-05,2]
[348054143,1736285434064,-500.0,9.791e-05,2]
[348054144,1736285434074,-634.16,9.791e-05,2]
[348054145,1736285434083,-2406.27,9.791e-05,2]
[348054146,1736285434093,-388.657799,9.791e-05,2]
[348054147,1736285434103,-500.0,9.791e-05,2]
[348054148,1736285434114,-500.0,9.792e-05,2]
[348054149,1736285434124,-507.76,9.792e-05,2]
[348054150,1736285434136,-825.64,9.792e-05,2]
[348054151,1736285434145,-549.01,9.792e-05,2]
[348054152,1736285434155,-1192.98,9.792e-05,2]
[348054153,1736285434165,-1113.0,9.792e-05,2]
[348054154,1736285434174,-500.0,9.792e-05,2]
[348054155,1736285434184,-500.0,9.792e-05,2]
[348054156,1736285434193,-803.92,9.792e-05,2]
[348054157,1736285434203,-500.0,9.792e-05,2]
[348054158,1736285434214,-914.34,9.792e-05,2]
[348054159,1736285434225,-500.0,9.792e-05,2]
[348054160,1736285434236,-500.0,9.792e-05,2]
[348054161,1736285434246,-500.0,9.792e-05,2]
[348054162,1736285434257,-785.94,9.792e-05,2]
[348054163,1736285434271,-536.25,9.792e-05,2]
[348054164,1736285434281,-925.69,9.792e-05,2]
[348054165,1736285434291,-500.0,9.792e-05,2]
[348054166,1736285434302,-897.88,9.792e-05,2]
[348054167,1736285434312,-500.0,9.792e-05,2]
[348054168,1736285434322,-500.0,9.792e-05,2]
[348054169,1736285434332,-698.08,9.792e-05,2]
[348054170,1736285434343,-500.0,9.792e-05,2]
[348054171,1736285434353,-500.0,9.792e-05,2]
[348054172,1736285434363,-820.59,9.792e-05,2]
[348054173,1736285434374,-500.0,9.792e-05,2]
[348054174,1736285434384,-500.0,9.792e-05,2]
[348054175,1736285434395,-500.0,9.792e-05,2]
[348054176,1736285434406,-500.0,9.792e-05,2]
[348054177,1736285434416,-690.92,9.792e-05,2]
[348054178,1736285434426,-694.71,9.792e-05,2]
[348054179,1736285434435,-1230.96,9.792e-05,2]
[348054180,1736285434444,-590.61,9.792e-05,2]
[348054181,1736285434454,-500.0,9.792e-05,2]
[348054182,1736285434464,-1319.73,9.792e-05,2]
[348054183,1736285434475,-839.25,9.792e-05,2]
[348054184,1736285434487,-697.65,9.792e-05,2]
[348054185,1736285434497,-500.0,9.792e-05,2]
[348054186,1736285434507,-500.0,9.792e-05,2]
[348054187,1736285434517,-573.15,9.792e-05,2]
[348054188,1736285434527,-500.0,9.792e-05,2]
[348054189,1736285434537,-717.54,9.792e-05,2]
[348054190,1736285434548,-925.96,9.792e-05,2]
[348054191,1736285434558,-580.22,9.792e-05,2]
[348054192,1736285434569,-500.0,9.792e-05,2]
[348054193,1736285434579,-814.3,9.792e-05,2]
[348054194,1736285434590,-730.19,9.792e-05,2]
[348054195,1736285434600,-653.13,9.792e-05,2]
[348054196,1736285434609,-500.0,9.792e-05,2]
[348054197,1736285434619,-575.1,9.792e-05,2]
[348054198,1736285434629,-520.59,9.792e-05,2]
[348054199,1736285434640,-500.0,9.792e-05,2]
[348054200,1736285434650,-500.0,9.792e-05,2]
[348054201,1736285434660,-500.0,9.792e-05,2]
[348054202,1736285434669,-500.0,9.792e-05,2]
[348054203,1736285434678,-500.0,9.792e-05,2]
[348054204,1736285434687,-500.0,9.792e-05,2]
[348054205,1736285434697,-500.0,9.792e-05,2]
[348054206,1736285434707,-704.84,9.792e-05,2]
[348054207,1736285434717,-500.0,9.792e-05,2]
[348054208,1736285434726,-1992.47,9.792e-05,2]
[348054209,1736285434738,-500.0,9.792e-05,2]
[348054210,1736285434748,-1412.05,9.792e-05,2]
[348054211,1736285434758,-772.9,9.792e-05,2]
[348054212,1736285434768,-1064.83,9.792e-05,2]
[348054213,1736285434778,-1352.24,9.792e-05,2]
[348054214,1736285434789,-4897.18,9.792e-05,2]
[348054215,1736285434798,-500.0,9.792e-05,2]
[348054216,1736285434808,-500.0,9.792e-05,2]
[348054217,1736285434818,-500.0,9.792e-05,2]
[348054218,1736285434829,-576.31,9.792e-05,2]
[348054219,1736285434839,-690.25,9.792e-05,2]
[348054220,1736285434848,-500.0,9.792e-05,2]
[348054221,1736285434858,-671.35,9.792e-05,2]
[348054222,1736285434868,-712.19,9.792e-05,2]
[348054223,1736285434878,-1495.83,9.792e-05,2]
[348054224,1736285434889,-1179.26,9.792e-05,2]
[348054225,1736285434902,-1529.96,9.792e-05,2]
[348054226,1736285434911,-1226.08,9.792e-05,2]
[348054227,1736285434922,-500.0,9.792e-05,2]
[348054228,1736285434932,-500.0,9.792e-05,2]
[348054229,1736285434942,-724.83,9.792e-05,2]
[348054230,1736285434952,-500.0,9.792e-05,2]
[348054231,1736285434961,-500.0,9.792e-05,2]
[348054232,1736285434972,-509.05,9.792e-05,2]
[348054233,1736285434984,-500.0,9.792e-05,2]
[348054234,1736285434995,-673.5,9.792e-05,2]
[348054235,1736285435005,-500.0,9.792e-05,2]
[348054236,1736285435015,-500.0,9.792e-05,2]
[348054237,1736285435026,-500.0,9.792e-05,2]
[348054238,1736285435036,-1342.38,9.792e-05,2]
[348054239,1736285435046,-613.64375269,9.793e-05,2]
[348054240,1736285435056,-500.0,9.793e-05,2]
[348054241,1736285435067,-500.0,9.793e-05,2]
[348054242,1736285435076,-500.0,9.793e-05,2]
[348054243,1736285435087,-500.0,9.793e-05,2]
[348054244,1736285435096,-500.0,9.793e-05,2]
[348054245,1736285435106,-500.0,9.793e-05,2]
[348054246,1736285435115,-518.82,9.793e-05,2]
[348054247,1736285435125,-500.0,9.793e-05,2]
[348054248,1736285435136,-500.0,9.793e-05,2]
[348054249,1736285435148,-500.0,9.793e-05,2]
[348054250,1736285435158,-1755.83,9.793e-05,2]
[348054251,1736285435168,-500.0,9.793e-05,2]
[348054252,1736285435177,-500.0,9.793e-05,2]
[348054253,1736285435187,-500.0,9.793e-05,2]
[348054254,1736285435198,-500.0,9.793e-05,2]
[348054255,1736285435207,-500.0,9.793e-05,2]
[348054256,1736285435217,-500.0,9.793e-05,2]
[348054257,1736285435226,-500.0,9.793e-05,2]
[348054258,1736285435237,-500.0,9.793e-05,2]
[348054259,1736285435248,-500.0,9.793e-05,2]
[348054260,1736285435257,-598.86120518,9.793e-05,2]
[348054261,1736285435267,-500.0,9.793e-05,2]
[348054262,1736285435277,-500.0,9.793e-05,2]
[348054263,1736285435287,-204.92918613,9.793e-05,2]
[348054264,1736285435297,-500.0,9.793e-05,2]
[348054265,1736285435306,-500.0,9.793e-05,2]
[348054266,1736285435316,-500.0,9.793e-05,2]
[348054267,1736285435327,-500.0,9.793e-05,2]
[348054268,1736285435336,-500.0,9.793e-05,2]
[348054269,1736285435346,-1433.66,9.793e-05,2]
[348054270,1736285435357,-500.0,9.793e-05,2]
[348054271,1736285435367,-282.4719779,9.793e-05,2]
[348054272,1736285435377,-500.0,9.793e-05,2]
[348054273,1736285435387,-555.67,9.793e-05,2]
[348054274,1736285435397,-573.04,9.793e-05,2]
[348054275,1736285435407,-500.0,9.793e-05,2]
[348054276,1736285435416,-500.0,9.793e-05,2]
[348054277,1736285435426,-464.25277512,9.793e-05,2]
[348054278,1736285435436,-500.0,9.793e-05,2]
[348054279,1736285435446,-500.0,9.793e-05,2]
[348054280,1736285435456,-500.0,9.793e-05,2]
[348054281,1736285435466,-500.0,9.793e-05,2]
[348054282,1736285435476,-500.0,9.793e-05,2]
[348054283,1736285435489,-500.0,9.793e-05,2]
[348054284,1736285435498,-500.0,9.793e-05,2]
[348054285,1736285435508,-500.0,9.793e-05,2]
[348054286,1736285435518,-500.0,9.793e-05,2]
[348054287,1736285435528,-500.0,9.793e-05,2]
[348054288,1736285435537,-500.0,9.793e-05,2]
[348054289,1736285435547,-500.0,9.793e-05,2]
[348054290,1736285435556,-500.0,9.793e-05,2]
[348054291,1736285435566,-500.0,9.793e-05,2]
[348054292,1736285435576,-500.0,9.793e-05,2]
[348054293,1736285435585,-500.0,9.793e-05,2]
[348054294,1736285435595,-500.0,9.793e-05,2]
[348054295,1736285435605,-500.0,9.793e-05,2]
[348054296,1736285435614,-1382.91,9.793e-05,2]
[348054297,1736285435623,-500.0,9.793e-05,2]
[348054298,1736285435633,-500.0,9.793e-05,2]
[348054299,1736285435642,-500.0,9.793e-05,2]
[348054300,1736285435652,-609.76,9.793e-05,2]
[348054301,1736285435662,-590.98,9.793e-05,2]
[348054302,1736285435671,-500.0,9.793e-05,2]
[348054303,1736285435681,-180.36974707,9.793e-05,2]
[348054304,1736285435691,-500.0,9.793e-05,2]
[348054305,1736285435700,-500.0,9.793e-05,2]
[348054306,1736285435710,-500.0,9.793e-05,2]
[348054307,1736285435719,-500.0,9.793e-05,2]
[348054308,1736285435729,-500.0,9.793e-05,2]
[348054309,1736285435739,-500.95,9.793e-05,2]
[348054310,1736285435748,-656.57,9.793e-05,2]
[348054311,1736285435758,-500.0,9.793e-05,2]
[348054312,1736285435767,-500.0,9.793e-05,2]
[348054313,1736285435776,-500.0,9.793e-05,2]
[348054314,1736285435787,-500.0,9.793e-05,2]
[348054315,1736285435796,-500.0,9.793e-05,2]
[348054316,1736285435806,-500.0,9.793e-05,2]
[348054317,1736285435815,-2033.83,9.793e-05,2]
[348054318,1736285435825,-500.0,9.793e-05,2]
[348054319,1736285435834,-500.0,9.793e-05,2]
[348054320,1736285435844,-500.0,9.793e-05,2]
[348054321,1736285435853,-500.0,9.793e-05,2]
[348054322,1736285435863,-500.0,9.793e-05,2]
[348054323,1736285435872,-500.0,9.793e-05,2]
[348054324,1736285435881,-500.0,9.793e-05,2]
[348054325,1736285435893,-500.0,9.793e-05,2]
[348054326,1736285435903,-500.0,9.793e-05,2]
[348054327,1736285435913,-500.0,9.793e-05,2]
[348054328,1736285435923,-500.0,9.793e-05,2]
[348054329,1736285435932,-500.0,9.793e-05,2]
[348054330,1736285435942,-500.0,9.793e-05,2]
[348054331,1736285435952,-500.0,9.793e-05,2]
[348054332,1736285435962,-500.0,9.793e-05,2]
[348054333,1736285435974,-500.0,9.793e-05,2]
[348054334,1736285435985,-500.0,9.793e-05,2]
[348054335,1736285435995,-500.0,9.793e-05,2]
[348054336,1736285436004,-500.0,9.793e-05,2]
[348054337,1736285436014,-500.0,9.793e-05,2]
[348054338,1736285436023,-500.0,9.793e-05,2]
[348054339,1736285436033,-500.0,9.793e-05,2]
[348054340,1736285436043,-581.22117344,9.793e-05,2]
[348054341,1736285436053,-500.0,9.793e-05,2]
[348054342,1736285436063,-500.0,9.793e-05,2]
[348054343,1736285436073,-500.0,9.793e-05,2]
[348054344,1736285436082,-500.0,9.793e-05,2]
[348054345,1736285436092,-500.0,9.793e-05,2]
[348054346,1736285436102,-500.0,9.793e-05,2]
[348054347,1736285436111,-500.0,9.793e-05,2]
[348054348,1736285436121,-500.0,9.793e-05,2]
[348054349,1736285436131,-500.0,9.793e-05,2]
[348054350,1736285436141,-500.0,9.793e-05,2]
[348054351,1736285436151,-500.0,9.793e-05,2]
[348054352,1736285436160,-500.0,9.793e-05,2]
[348054353,1736285436170,-500.0,9.793e-05,2]
[348054354,1736285436179,-500.0,9.793e-05,2]
[348054355,1736285436189,-500.0,9.793e-05,2]
[348054356,1736285436199,-500.0,9.793e-05,2]
[348054357,1736285436209,-182.84734115,9.793e-05,2]
[348054358,1736285436219,-500.0,9.793e-05,2]
[348054359,1736285436228,-500.0,9.793e-05,2]
[348054360,1736285436242,-500.0,9.793e-05,2]
[348054361,1736285436252,-500.0,9.793e-05,2]
[348054362,1736285436262,-500.0,9.793e-05,2]
[348054363,1736285436272,-500.0,9.793e-05,2]
[348054364,1736285436282,-500.0,9.793e-05,2]
[348054365,1736285436292,-500.0,9.793e-05,2]
[348054366,1736285436302,-500.0,9.793e-05,2]
[348054367,1736285436311,-500.0,9.793e-05,2]
[348054368,1736285436321,-1704.88,9.793e-05,2]
[348054369,1736285436330,-500.0,9.793e-05,2]
[348054370,1736285436340,-500.0,9.793e-05,2]
[348054371,1736285436349,-500.0,9.793e-05,2]
[348054372,1736285436358,-500.0,9.793e-05,2]
[348054373,1736285436368,-500.0,9.793e-05,2]
[348054374,1736285436378,-500.0,9.793e-05,2]
[348054375,1736285436387,-500.0,9.793e-05,2]
[348054376,1736285436397,-500.0,9.793e-05,2]
[348054377,1736285436406,-500.0,9.793e-05,2]
[348054378,1736285436415,-500.0,9.793e-05,2]
[348054379,1736285436425,-500.0,9.793e-05,2]
[348054380,1736285436434,-500.0,9.793e-05,2]
[348054381,1736285436443,-500.0,9.793e-05,2]
[348054382,1736285436453,-500.0,9.793e-05,2]
[348054383,1736285436463,-500.0,9.793e-05,2]
[348054384,1736285436473,-500.0,9.793e-05,2]
[348054385,1736285436489,-500.0,9.793e-05,2]
[348054386,1736285436498,-500.0,9.793e-05,2]
[348054387,1736285436508,-500.0,9.793e-05,2]
[348054388,1736285436518,-500.0,9.793e-05,2]
[348054389,1736285436528,-500.0,9.793e-05,2]
[348054390,1736285436538,-500.0,9.793e-05,2]
[348054391,1736285436548,-500.0,9.793e-05,2]
[348054392,1736285436558,-765.99,9.793e-05,2]
[348054393,1736285436568,-1193.75,9.793e-05,2]
[348054394,1736285436578,-500.0,9.793e-05,2]
[348054395,1736285436588,-500.0,9.793e-05,2]
[348054396,1736285436746,-500.0,9.793e-05,2]
[348054397,1736285436756,-520.31,9.793e-05,2]
[348054398,1736285436766,-500.0,9.793e-05,2]
[348054399,1736285436775,-500.0,9.793e-05,2]
[348054400,1736285436785,-500.0,9.793e-05,2]
[348054401,1736285436795,-500.0,9.793e-05,2]
[348054402,1736285436805,-500.0,9.793e-05,2]
[348054403,1736285436814,-500.0,9.793e-05,2]
[348054404,1736285436824,-500.0,9.793e-05,2]
[348054405,1736285436833,-500.0,9.793e-05,2]
[348054406,1736285436842,-500.0,9.793e-05,2]
[348054407,1736285436852,-500.0,9.793e-05,2]
[348054408,1736285436861,-500.0,9.793e-05,2]
[348054409,1736285436871,-500.0,9.793e-05,2]
[348054410,1736285436880,-500.0,9.793e-05,2]
[348054411,1736285436890,-500.0,9.793e-05,2]
[348054412,1736285436903,-500.0,9.793e-05,2]
[348054413,1736285436912,-500.0,9.793e-05,2]
[348054414,1736285436921,-500.0,9.793e-05,2]
[348054415,1736285436931,-500.0,9.793e-05,2]
[348054416,1736285436942,-666.4,9.793e-05,2]
[348054417,1736285436951,-500.0,9.793e-05,2]
[348054418,1736285436960,-500.0,9.793e-05,2]
[348054419,1736285436970,-2193.62,9.793e-05,2]
[348054420,1736285436981,-500.0,9.793e-05,2]
[348054421,1736285436993,-500.0,9.793e-05,2]
[348054422,1736285437003,-500.0,9.793e-05,2]
[348054423,1736285437012,-428.54399687,9.793e-05,2]
[348054424,1736285437041,-71.45600313,9.793e-05,2]